bitfinex/quotes_ETHUSD_20230109
["timestamp","ask_amount","ask_price","bid_price","bid_amount"]
[1673255803752,22.2057,1313.7,1313.4,19.02136217]
[1673255803953,22.2057,1313.7,1313.4,26.63518217]
[1673255804197,22.2057,1313.7,1313.4,19.02136217]
[1673255804834,22.2057,1313.7,1313.4,26.63518217]
[1673255805037,25.00048118,1313.7,1313.4,26.63518217]
[1673255805429,25.00048118,1313.7,1313.4,19.02136217]
[1673255805873,25.05048118,1313.7,1313.4,26.63518217]
[1673255806066,25.00048118,1313.7,1313.4,26.63518217]
[1673255808172,25.00048118,1313.7,1313.4,19.02136217]
[1673255808585,25.00048118,1313.7,1313.4,15.22370153]
[1673255808807,30.74759296,1313.7,1313.4,7.60988153]
[1673255809263,31.29169296,1313.7,1313.4,7.60988153]
[1673255809686,31.29169296,1313.7,1313.4,22.83752153]
[1673255809862,31.29169296,1313.7,1313.4,15.22370153]
[1673255811152,31.29169296,1313.7,1313.4,22.83752153]
[1673255811327,31.29169296,1313.7,1313.4,15.22370153]
[1673255812269,31.29169296,1313.7,1313.3,4.0]
[1673255812478,1.746,1313.6,1313.3,11.61418]
[1673255812724,5.0497693,1313.6,1313.2,14.61461]
[1673255813045,5.0497693,1313.6,1313.2,18.41227064]
[1673255813373,9.05288108,1313.6,1313.2,26.02725064]
[1673255814289,9.05288108,1313.6,1313.2,22.22959]
[1673255814505,16.66576108,1313.6,1313.2,14.61461]
[1673255814930,16.66576108,1313.6,1313.2,14.61078666]
[1673255815527,16.66576108,1313.6,1313.2,2.99617666]
[1673255815528,24.27864108,1313.6,1313.2,2.99617666]
[1673255816516,16.66576108,1313.6,1313.2,2.99617666]
[1673255816729,16.66576108,1313.6,1313.2,10.61095666]
[1673255816896,9.05288108,1313.6,1313.2,18.22593666]
[1673255818512,9.05288108,1313.6,1313.2,25.84091666]
[1673255819103,16.66555108,1313.6,1313.2,18.22593666]
[1673255819299,16.66555108,1313.6,1313.2,10.61095666]
[1673255819510,16.66555108,1313.6,1313.1,13.97388666]
[1673255819724,16.66555108,1313.6,1313.2,14.61478]
[1673255820007,12.6624393,1313.6,1313.2,14.61478]
[1673255821193,20.2751093,1313.6,1313.2,7.0]
[1673255821562,24.27822108,1313.6,1313.2,7.0]
[1673255823408,16.66555108,1313.6,1313.2,14.61492]
[1673255823817,9.05288108,1313.6,1313.2,14.61492]
[1673255824077,5.0497693,1313.6,1313.2,22.2299]
[1673255824874,5.0497693,1313.6,1313.2,29.84488]
[1673255825584,5.0497693,1313.6,1313.2,22.2299]
[1673255826482,0.05,1313.5,1313.2,22.2299]
[1673255826661,5.0497693,1313.6,1313.2,22.2299]
[1673255826865,1.733,1313.5,1313.2,22.2299]
[1673255827329,12.4204,1313.5,1313.2,22.2299]
[1673255828080,12.4204,1313.5,1313.2,14.61492]
[1673255828233,14.92868793,1313.5,1313.2,14.61492]
[1673255829447,14.92868793,1313.5,1313.2,22.2299]
[1673255830382,14.92868793,1313.5,1313.2,29.84488]
[1673255831841,14.92868793,1313.5,1313.2,22.2299]
[1673255832387,10.6874,1313.5,1313.2,29.84488]
[1673255832751,31.29369296,1313.7,1313.3,3.79766064]
[1673255832968,37.78898118,1313.7,1313.3,19.02592064]
[1673255833399,37.78898118,1313.7,1313.3,26.64032064]
[1673255833926,41.79209296,1313.7,1313.3,26.64032064]
[1673255834579,37.78898118,1313.7,1313.3,26.64032064]
[1673255834877,41.79209296,1313.7,1313.3,26.64032064]
[1673255835129,37.78898118,1313.7,1313.3,26.64032064]
[1673255835307,41.79209296,1313.7,1313.3,26.64032064]
[1673255836262,37.78898118,1313.7,1313.3,26.64032064]
[1673255836483,41.79209296,1313.7,1313.3,26.64032064]
[1673255837078,34.9942,1313.7,1313.3,26.64032064]
[1673255837327,0.5441,1313.6,1313.3,26.64032064]
[1673255837755,35.5383,1313.7,1313.3,26.64032064]
[1673255837930,4.00311178,1313.9,1313.6,1.744]
[1673255838288,24.00311178,1314.0,1313.8,15.223]
[1673255838966,20.0,1314.0,1313.8,15.223]
[1673255840242,20.0,1314.0,1313.8,7.6115]
[1673255840598,25.78615118,1314.0,1313.8,7.6115]
[1673255841291,25.78615118,1314.0,1313.5,5.741]
[1673255841506,25.78615118,1314.0,1313.7,7.61204]
[1673255841717,25.78615118,1314.0,1313.7,15.22408]
[1673255841962,25.78615118,1314.0,1313.6,11.40994064]
[1673255842278,25.78615118,1314.0,1313.6,19.02227064]
[1673255842452,25.78615118,1314.0,1313.6,26.63493064]
[1673255842661,25.78615118,1314.0,1313.6,3.79766064]
[1673255842662,31.53526296,1314.0,1313.6,3.79766064]
[1673255842877,54.36695296,1314.0,1313.6,3.79766064]
[1673255843340,54.36695296,1314.0,1313.6,3.79556601]
[1673255843494,46.75609296,1314.0,1313.6,3.79556601]
[1673255844150,54.36657296,1314.0,1313.6,3.79556601]
[1673255845391,46.75609296,1314.0,1313.6,3.79556601]
[1673255845627,39.14561296,1314.0,1313.6,7.61254]
[1673255845965,39.14561296,1314.0,1313.5,22.83869]
[1673255846178,39.14561296,1314.0,1313.6,3.0]
[1673255847107,0.05,1313.9,1313.6,3.0]
[1673255847323,39.14561296,1314.0,1313.6,10.61247]
[1673255848066,39.14561296,1314.0,1313.6,3.0]
[1673255848067,46.75596296,1314.0,1313.6,3.0]
[1673255849115,39.14561296,1314.0,1313.6,3.0]
[1673255849332,39.14561296,1314.0,1313.6,10.61264]
[1673255850041,39.8271952,1314.0,1313.6,10.61264]
[1673255852274,4.00311178,1313.9,1313.6,10.61264]
[1673255852440,4.52691952,1313.9,1313.6,10.61264]
[1673255852657,6.27291952,1313.9,1313.6,3.0]
[1673255852860,5.72871952,1313.9,1313.6,3.0]
[1673255853207,20.3753313,1313.9,1313.6,3.0]
[1673255853396,16.37221952,1313.9,1313.6,10.61255]
[1673255854336,20.3753313,1313.9,1313.6,7.61255]
[1673255854792,20.3753313,1313.9,1313.5,15.22575]
[1673255854945,43.4409313,1313.9,1313.5,15.22575]
[1673255855950,39.43781952,1313.9,1313.5,15.22575]
[1673255856316,43.4409313,1313.9,1313.5,15.22575]
[1673255857889,43.4409313,1313.9,1313.5,22.83899]
[1673255858307,39.43781952,1313.9,1313.5,22.83899]
[1673255858987,43.4409313,1313.9,1313.5,7.61284]
[1673255859296,51.0518713,1313.9,1313.5,7.61284]
[1673255859574,0.05,1313.8,1313.5,7.61284]
[1673255859724,51.0518713,1313.9,1313.5,7.61284]
[1673255862364,39.43781952,1313.9,1313.5,15.22608]
[1673255862882,43.4409313,1313.9,1313.5,15.22608]
[1673255865509,1.739,1313.8,1313.5,15.22608]
[1673255866206,6.08239313,1313.8,1313.5,15.22608]
[1673255866876,6.08239313,1313.8,1313.5,15.22220842]
[1673255868006,1.739,1313.8,1313.5,22.83544842]
[1673255868222,35.4381,1313.9,1313.5,22.83544842]
[1673255868666,33.7091,1313.9,1313.5,28.37910906]
[1673255871257,33.7091,1313.9,1313.5,32.37910906]
[1673255871486,33.7091,1313.9,1313.6,3.0]
[1673255871694,33.7091,1313.9,1313.7,22.83624]
[1673255872114,26.97479402,1314.0,1313.7,22.83624]
[1673255872352,26.43069402,1314.0,1313.7,22.83624]
[1673255872514,26.43069402,1314.0,1313.7,15.22416]
[1673255873188,26.43069402,1314.0,1313.7,18.207804]
[1673255874241,26.43069402,1314.0,1313.7,25.819884]
[1673255874603,26.43069402,1314.0,1313.7,18.207804]
[1673255875377,25.74911178,1314.0,1313.7,25.819884]
[1673255875797,25.74911178,1314.0,1313.7,18.207804]
[1673255876241,25.74911178,1314.0,1313.7,25.819884]
[1673255876455,25.74911178,1314.0,1313.7,18.207804]
[1673255877995,0.05,1313.9,1313.7,18.207804]
[1673255878201,25.74911178,1314.0,1313.8,7.79766064]
[1673255878522,20.0,1314.0,1313.9,15.22184]
[1673255879701,20.0,1314.0,1313.7,7.61208]
[1673255879919,20.0,1314.0,1313.7,19.02182064]
[1673255880904,20.0,1314.0,1313.7,26.63390064]
[1673255881950,24.00311178,1314.0,1313.7,26.63390064]
[1673255882088,24.00311178,1314.0,1313.7,11.40974064]
[1673255882300,24.00311178,1314.0,1313.7,3.79766064]
[1673255882820,24.00311178,1314.0,1313.7,11.40936064]
[1673255883034,31.11047991,1314.0,1313.7,15.22378]
[1673255884074,20.0,1314.0,1313.8,8.54366064]
[1673255884284,20.0,1314.0,1313.8,6.79766064]
[1673255884822,20.0,1314.0,1313.8,14.40909064]
[1673255885036,20.0,1314.0,1313.8,22.02059064]
[1673255885246,20.0,1314.0,1313.8,18.22293]
[1673255885469,22.40031118,1314.0,1313.8,18.22293]
[1673255885680,22.40031118,1314.0,1313.8,10.61143]
[1673255886226,20.0,1314.0,1313.8,18.22293]
[1673255886437,20.0,1314.0,1313.8,25.83443]
[1673255888221,20.0,1314.0,1313.8,3.0]
[1673255888592,20.0,1314.0,1313.8,15.22294]
[1673255889728,1.0860557,1313.9,1313.8,22.83444]
[1673255889908,1.0860557,1313.9,1313.8,25.83444]
[1673255891263,1.0860557,1313.9,1313.8,3.0]
[1673255891476,1.0860557,1313.9,1313.7,10.61171]
[1673255891674,1.0860557,1313.9,1313.7,29.63353064]
[1673255894005,20.0,1314.0,1313.7,31.36853064]
[1673255895532,20.0,1314.0,1313.7,29.63353064]
[1673255898262,19.99711322,1314.0,1313.7,29.63353064]
[1673255898917,19.99711322,1314.0,1313.7,6.79766064]
[1673255899130,33.356635,1314.0,1313.6,7.61262]
[1673255899347,29.54373632,1314.0,1313.6,7.61262]
[1673255899524,1.739,1313.9,1313.6,7.61262]
[1673255899969,1.739,1313.9,1313.6,15.22528]
[1673255900256,1.739,1313.9,1313.6,22.83794]
[1673255900257,12.5196,1313.9,1313.6,22.83794]
[1673255901456,13.63854154,1313.9,1313.6,22.83794]
[1673255901669,12.5196,1313.9,1313.6,22.83794]
[1673255905556,10.7806,1313.9,1313.6,22.83794]
[1673255914793,6.7806,1313.9,1313.6,22.83794]
[1673255917149,6.8306,1313.9,1313.6,22.83794]
[1673255917364,6.7806,1313.9,1313.6,22.83794]
[1673255927431,6.8306,1313.9,1313.6,22.83794]
[1673255927648,6.7806,1313.9,1313.6,22.83794]
[1673255936362,6.7806,1313.9,1313.6,22.83430542]
[1673255937463,10.78371178,1313.9,1313.6,22.83430542]
[1673255939034,6.7806,1313.9,1313.6,22.83430542]
[1673255939436,23.93541428,1313.9,1313.5,12.35068]
[1673255939653,25.67641428,1313.9,1313.6,3.0]
[1673255939857,18.06532428,1313.9,1313.6,3.0]
[1673255940186,18.06532428,1313.9,1313.6,10.61264]
[1673255940405,18.06532428,1313.9,1313.6,18.2253]
[1673255941237,14.0622125,1313.9,1313.6,18.2253]
[1673255944517,14.0622125,1313.9,1313.6,25.83796]
[1673255945147,18.06532428,1313.9,1313.6,25.83796]
[1673255945748,14.0622125,1313.9,1313.6,25.83796]
[1673255945987,14.1122125,1313.9,1313.6,25.83796]
[1673255946147,18.06532428,1313.9,1313.6,25.83796]
[1673255948180,16.32432428,1313.9,1313.6,25.83796]
[1673255955405,6.7806,1313.9,1313.6,25.83796]
[1673255957235,1.744,1313.7,1313.5,7.61268]
[1673255957425,6.62056574,1313.6,1313.4,7.61344]
[1673255957781,6.62056574,1313.6,1313.4,7.61376]
[1673255958092,1.18495598,1313.6,1313.2,12.06138]
[1673255958241,1.18495598,1313.6,1313.2,19.85904064]
[1673255958242,41.39202172,1313.6,1313.2,19.85904064]
[1673255958450,41.39202172,1313.6,1313.2,35.08900064]
[1673255958868,35.45303822,1313.6,1313.2,35.08900064]
[1673255959181,34.77145598,1313.6,1313.2,35.08900064]
[1673255959601,34.77145598,1313.6,1313.3,3.0]
[1673255959813,34.77145598,1313.6,1313.3,25.84291]
[1673255960126,34.77145598,1313.6,1313.3,25.83943281]
[1673255960331,34.77145598,1313.6,1313.3,10.61063281]
[1673255960547,41.39202172,1313.6,1313.3,10.61063281]
[1673255961010,41.39202172,1313.6,1313.3,18.22503281]
[1673255961188,34.77145598,1313.6,1313.3,18.22503281]
[1673255961858,34.77145598,1313.6,1313.3,25.83943281]
[1673255963014,34.77145598,1313.6,1313.3,2.99652281]
[1673255963386,41.39202172,1313.6,1313.3,2.99652281]
[1673255963858,41.39202172,1313.6,1313.3,18.22501281]
[1673255964075,24.79465598,1313.6,1313.3,18.22501281]
[1673255965384,24.79465598,1313.6,1313.3,10.61061281]
[1673255965593,31.41522172,1313.6,1313.3,10.61061281]
[1673255965819,24.79465598,1313.6,1313.3,18.22501281]
[1673255966356,24.79465598,1313.6,1313.3,2.99652281]
[1673255966538,31.41522172,1313.6,1313.3,2.99652281]
[1673255967532,32.09680396,1313.6,1313.3,2.99652281]
[1673255968120,1.741,1313.5,1313.3,10.61084281]
[1673255968327,1.741,1313.5,1313.3,2.99652281]
[1673255970018,1.741,1313.5,1313.3,10.61072281]
[1673255972441,1.741,1313.5,1313.3,25.83952281]
[1673255972777,1.741,1313.5,1313.3,18.22512281]
[1673255974042,1.741,1313.5,1313.3,10.61072281]
[1673255974256,1.741,1313.5,1313.3,2.99652281]
[1673255979483,8.36156574,1313.5,1313.3,2.99652281]
[1673255979702,1.741,1313.5,1313.3,2.99652281]
[1673255980252,1.741,1313.5,1313.3,10.61074281]
[1673255981261,1.741,1313.5,1313.3,2.99652281]
[1673255981481,8.36156574,1313.5,1313.3,2.99652281]
[1673255982195,8.35820888,1313.5,1313.3,2.99652281]
[1673255982405,1.73764314,1313.5,1313.3,2.99652281]
[1673255982616,8.35820888,1313.5,1313.3,2.99652281]
[1673255983288,15.97161888,1313.5,1313.3,2.99652281]
[1673255983504,8.35820888,1313.5,1313.3,2.99652281]
[1673255983817,13.26422759,1313.5,1313.3,2.99652281]
[1673255984081,13.92691981,1313.5,1313.2,22.84364]
[1673255985346,9.0209011,1313.5,1313.2,22.84364]
[1673255986766,6.62056574,1313.4,1313.2,22.84364]
[1673255986925,1.731,1313.4,1313.2,22.84364]
[1673255991491,2.39369222,1313.4,1313.2,22.84364]
[1673255991666,12.2192,1313.5,1313.2,22.84364]
[1673255998271,10.4772,1313.5,1313.2,22.84364]
[1673255999740,21.8767,1313.6,1313.3,3.0]
[1673255999943,10.736,1313.7,1313.4,34.45528]
[1673256000439,10.1917,1313.7,1313.4,34.45528]
[1673256006372,10.1917,1313.7,1313.4,34.45270609]
[1673256010798,1.09240095,1313.6,1313.4,34.45270609]
[1673256015305,1.08856826,1313.6,1313.4,34.45270609]
[1673256019214,1.08856826,1313.6,1313.5,3.0]
[1673256019426,1.08856826,1313.6,1313.5,25.83972]
[1673256033990,1.08856826,1313.6,1313.5,29.63738064]
[1673256035403,1.08856826,1313.6,1313.5,31.38338064]
[1673256036816,1.08856826,1313.6,1313.5,22.83972]
[1673256037428,1.08856826,1313.6,1313.5,22.83597088]
[1673256047390,1.08856826,1313.6,1313.5,26.63363152]
[1673256060057,1.08856826,1313.6,1313.5,26.63152218]
[1673256071150,10.8953,1313.7,1313.6,1.08855999]
[1673256071402,10.8953,1313.7,1313.6,23.92653999]
[1673256071832,19.99711322,1314.0,1313.6,33.45873897]
[1673256072148,19.99711322,1314.0,1313.9,1.746]
[1673256072359,10.63788322,1314.0,1313.9,28.37642064]
[1673256072572,0.36988322,1314.0,1313.9,28.37642064]
[1673256072879,10.3716,1314.1,1313.9,28.37642064]
[1673256078575,10.3716,1314.1,1314.0,3.79766064]
[1673256078794,10.3716,1314.1,1314.0,26.62871064]
[1673256079272,22.8999,1314.2,1314.0,26.62871064]
[1673256088038,17.72646,1314.2,1314.0,26.62871064]
[1673256088246,11.3264,1314.3,1314.2,22.82757]
[1673256088827,11.3264,1314.3,1314.2,7.60919]
[1673256089086,11.3264,1314.3,1314.1,7.60932]
[1673256089895,11.3264,1314.3,1314.1,26.62652064]
[1673256090206,11.3264,1314.3,1314.2,3.79766064]
[1673256090440,11.3264,1314.3,1314.2,26.62523064]
[1673256090640,10.7822,1314.3,1314.2,26.62523064]
[1673256092987,10.7822,1314.3,1314.2,19.01604064]
[1673256093206,10.7822,1314.3,1314.2,26.62523064]
[1673256097771,23.8331296,1314.4,1314.2,26.62523064]
[1673256097982,23.8331296,1314.4,1314.3,3.79766064]
[1673256098240,23.8331296,1314.4,1314.3,19.01488064]
[1673256098879,0.7257296,1314.4,1314.3,19.01488064]
[1673256099459,0.7257296,1314.4,1314.3,28.5249787]
[1673256101398,0.7257296,1314.4,1314.3,32.2349787]
[1673256101622,0.7257296,1315.0,1314.3,42.46051352]
[1673256101917,0.7257296,1315.0,1314.5,30.42864]
[1673256101918,31.9595,1314.9,1314.5,30.42864]
[1673256102145,32.5041,1314.9,1314.7,22.81887]
[1673256102317,32.5041,1314.9,1314.7,26.61653064]
[1673256102506,31.9595,1314.9,1314.7,26.61653064]
[1673256102714,31.9595,1314.9,1314.7,30.42516]
[1673256102715,10.6477,1314.9,1314.7,30.42516]
[1673256102969,10.6477,1314.9,1314.7,26.61653064]
[1673256103184,11.54543083,1314.9,1314.7,26.61653064]
[1673256103501,10.6477,1314.9,1314.7,26.61653064]
[1673256104293,17.30203482,1314.9,1314.7,22.81887]
[1673256104544,10.6477,1314.9,1314.7,15.21258]
[1673256104765,10.6477,1314.9,1314.7,22.81887]
[1673256105615,10.6477,1314.9,1314.7,26.61653064]
[1673256106625,17.30138811,1314.9,1314.6,15.21325]
[1673256106972,19.04738811,1314.9,1314.6,22.81976]
[1673256107806,12.3937,1314.9,1314.6,26.61742064]
[1673256108022,12.3937,1314.9,1314.6,22.81976]
[1673256108546,10.6477,1314.9,1314.6,26.61742064]
[1673256108765,10.6477,1314.9,1314.7,3.79766064]
[1673256108921,10.6477,1314.9,1314.8,7.60571]
[1673256109282,25.5683296,1315.0,1314.8,7.60571]
[1673256109805,25.5683296,1315.0,1314.7,7.60589]
[1673256109974,32.22266442,1315.0,1314.6,22.81926]
[1673256110338,10.4236,1314.9,1314.6,26.61692064]
[1673256110861,0.05,1314.7,1314.6,26.61692064]
[1673256111078,10.4236,1314.9,1314.6,26.61692064]
[1673256114426,10.4236,1314.9,1314.7,3.79766064]
[1673256114617,10.4236,1314.9,1314.8,7.60571]
[1673256114826,10.4236,1314.9,1314.8,15.21142]
[1673256117336,10.4236,1314.9,1314.8,22.81713]
[1673256119588,10.4236,1314.9,1314.7,19.00972064]
[1673256119805,10.4236,1314.9,1314.7,7.60603]
[1673256120019,13.84889296,1314.9,1314.6,7.60637]
[1673256120178,20.5012744,1314.9,1314.6,11.40403064]
[1673256120389,13.84889296,1314.9,1314.6,11.40403064]
[1673256120735,20.50062921,1314.9,1314.6,19.01090064]
[1673256121066,13.84889296,1314.9,1314.6,19.01090064]
[1673256121277,20.50062828,1314.9,1314.6,19.01090064]
[1673256121457,13.84889296,1314.9,1314.6,19.01090064]
[1673256122532,20.5012747,1314.9,1314.6,15.21324]
[1673256123068,20.5012747,1314.9,1314.5,7.60744]
[1673256123242,20.5012747,1314.9,1314.4,7.60794]
[1673256123243,6.65107427,1314.8,1314.4,7.60794]
[1673256123435,11.4406466,1314.8,1314.3,14.95716]
[1673256123642,11.43933887,1314.8,1314.5,7.60733]
[1673256123857,4.78957233,1314.8,1314.5,26.61989064]
[1673256125542,4.78957233,1314.8,1314.5,19.01244064]
[1673256125756,12.39539233,1314.8,1314.5,3.79766064]
[1673256126168,4.78957233,1314.8,1314.5,7.60737]
[1673256127154,11.32086734,1314.8,1314.3,11.95737]
[1673256127380,1.746,1314.6,1314.3,7.60827]
[1673256127582,1.746,1314.5,1314.3,7.60839]
[1673256127949,1.746,1314.5,1314.2,18.2178]
[1673256128315,1.746,1314.5,1314.2,22.01546064]
[1673256128632,1.746,1314.5,1314.2,29.62465064]
[1673256129951,13.91026345,1314.6,1314.2,29.62465064]
[1673256133137,20.43875589,1314.6,1314.2,29.62465064]
[1673256133776,13.91026345,1314.6,1314.2,29.62465064]
[1673256133943,20.43875589,1314.6,1314.2,29.62465064]
[1673256137757,13.91026345,1314.6,1314.2,29.62465064]
[1673256137972,13.91026345,1314.6,1314.2,22.01546064]
[1673256138377,20.56459827,1314.6,1314.2,22.01546064]
[1673256139428,20.56459827,1314.6,1314.2,29.62465064]
[1673256139635,24.55364919,1314.6,1314.2,29.62465064]
[1673256139847,13.91026345,1314.6,1314.2,29.62465064]
[1673256140047,20.56001689,1314.6,1314.2,29.62465064]
[1673256140253,20.56001689,1314.6,1314.2,22.01546064]
[1673256141203,20.56001689,1314.6,1314.2,29.62465064]
[1673256143297,20.56001689,1314.6,1314.2,22.01546064]
[1673256143467,20.56001689,1314.6,1314.2,29.62465064]
[1673256144276,20.56001689,1314.6,1314.2,22.01546064]
[1673256145021,20.56001689,1314.6,1314.2,29.62465064]
[1673256145621,18.97165344,1314.6,1314.2,29.62465064]
[1673256145868,0.05,1314.5,1314.2,29.62465064]
[1673256146088,18.97165344,1314.6,1314.2,29.62465064]
[1673256147639,18.97165344,1314.6,1314.2,29.62240368]
[1673256149028,18.97165344,1314.6,1314.2,22.01321368]
[1673256149242,26.8325428,1314.6,1314.2,29.62240368]
[1673256149762,20.18278936,1314.6,1314.2,29.62240368]
[1673256149933,16.19373844,1314.6,1314.2,29.62240368]
[1673256150136,22.84214724,1314.6,1314.2,29.62240368]
[1673256151303,26.83119816,1314.6,1314.2,29.62240368]
[1673256151525,20.18278936,1314.6,1314.2,29.62240368]
[1673256151928,16.19373844,1314.6,1314.2,29.62240368]
[1673256152143,22.84148391,1314.6,1314.2,29.62240368]
[1673256153420,22.84148391,1314.6,1314.2,22.01321368]
[1673256153975,48.77203483,1314.6,1314.2,22.01321368]
[1673256154124,48.77203483,1314.6,1314.2,29.62240368]
[1673256154338,42.12428936,1314.6,1314.2,29.62240368]
[1673256154589,38.13523844,1314.6,1314.2,29.62240368]
[1673256154815,44.78230733,1314.6,1314.2,29.62240368]
[1673256155738,48.77135825,1314.6,1314.2,29.62240368]
[1673256155955,42.12428936,1314.6,1314.2,29.62240368]
[1673256156138,0.05,1314.5,1314.2,29.62240368]
[1673256156353,42.12428936,1314.6,1314.2,22.01321368]
[1673256156582,42.12122264,1314.6,1314.2,22.01321368]
[1673256156756,48.76886983,1314.6,1314.2,22.01321368]
[1673256157108,48.76886983,1314.6,1314.2,29.62240368]
[1673256157489,48.76886983,1314.6,1314.2,22.01321368]
[1673256158165,48.76886983,1314.6,1314.2,29.62240368]
[1673256161406,44.89703139,1314.6,1314.2,29.62240368]
[1673256161630,43.15409811,1314.6,1314.2,29.62240368]
[1673256162537,36.50645092,1314.6,1314.2,29.62240368]
[1673256162813,43.15408296,1314.6,1314.2,29.62240368]
[1673256163630,32.5174,1314.6,1314.4,22.82409]
[1673256163800,36.34234509,1314.6,1314.4,22.82409]
[1673256164434,40.33139601,1314.6,1314.4,22.82409]
[1673256166379,32.5174,1314.6,1314.4,22.82409]
[1673256175911,10.5759,1314.6,1314.4,26.62175064]
[1673256176122,8.30403873,1314.8,1314.5,3.79766064]
[1673256176123,4.53345092,1314.8,1314.5,3.79766064]
[1673256176349,35.74465092,1314.8,1314.6,22.82061]
[1673256176557,38.68821401,1314.8,1314.6,22.82061]
[1673256177848,34.69916309,1314.8,1314.6,22.82061]
[1673256178752,31.7556,1314.8,1314.6,22.82061]
[1673256178952,31.7556,1314.8,1314.6,26.61827064]
[1673256179411,10.4942,1314.8,1314.6,26.61827064]
[1673256179860,10.4942,1314.8,1314.6,26.61450309]
[1673256180159,3.98905092,1314.9,1314.6,26.61450309]
[1673256180553,36.73628052,1315.0,1314.6,26.61450309]
[1673256183974,36.73628052,1315.0,1314.7,3.79766064]
[1673256184177,36.19178052,1315.0,1314.8,15.21142]
[1673256186641,36.19178052,1315.0,1314.8,22.81713]
[1673256186852,40.33661521,1315.0,1314.8,22.81713]
[1673256188160,36.34756429,1315.0,1314.8,22.81713]
[1673256189107,0.05,1314.9,1314.8,26.61479064]
[1673256189427,32.2027296,1315.0,1314.8,26.61479064]
[1673256189948,0.56760208,1314.9,1314.8,26.61479064]
[1673256192264,2.08e-06,1314.9,1314.8,26.61479064]
[1673256192573,0.7257296,1315.0,1314.8,32.11632898]
[1673256192785,0.7257296,1315.0,1314.9,3.79766064]
[1673256192993,0.7257296,1315.0,1314.9,26.61308064]
[1673256194412,0.7257296,1315.0,1314.9,3.79766064]
[1673256194637,0.7257296,1315.0,1314.9,11.40280064]
[1673256194898,0.7257296,1315.0,1314.9,19.00794064]
[1673256195348,0.7757296,1315.0,1314.9,19.00794064]
[1673256195502,0.7257296,1315.0,1314.9,19.00794064]
[1673256195723,0.7257296,1315.0,1314.9,26.56911292]
[1673256195933,0.7257296,1315.0,1314.9,18.96397292]
[1673256196153,0.7257296,1315.0,1314.9,26.56911292]
[1673256197377,0.7257296,1315.0,1314.9,18.96397292]
[1673256197804,0.7257296,1315.0,1314.9,26.56911292]
[1673256198117,0.7257296,1315.0,1314.9,18.96397292]
[1673256200055,0.7257296,1315.0,1314.9,26.56911292]
[1673256200673,0.7257296,1315.0,1314.9,18.96397292]
[1673256201310,0.7257296,1315.0,1314.9,26.56911292]
[1673256201672,0.7257296,1315.0,1314.9,18.96397292]
[1673256202641,0.7257296,1315.0,1314.9,26.56911292]
[1673256202850,0.7257296,1315.0,1314.9,18.96397292]
[1673256203292,0.7257296,1315.0,1314.9,26.56911292]
[1673256204193,0.7257296,1315.0,1314.9,18.96397292]
[1673256204719,0.7257296,1315.0,1314.9,26.56911292]
[1673256205456,0.7257296,1315.0,1314.9,28.31511292]
[1673256205909,0.7231184,1315.0,1314.9,28.31511292]
[1673256206975,0.7231184,1315.0,1314.9,7.60514]
[1673256207869,0.7231184,1315.0,1314.8,18.21048]
[1673256208235,0.7231184,1315.0,1314.9,7.60514]
[1673256209449,0.7231184,1315.0,1314.9,15.21028]
[1673256212023,0.7231184,1315.0,1314.9,22.81542]
[1673256212609,0.7231184,1315.0,1314.9,15.21028]
[1673256215340,0.7231184,1315.0,1314.9,18.17159106]
[1673256216646,0.7231184,1315.0,1314.9,10.56645106]
[1673256216860,0.7231184,1315.0,1314.9,7.60514]
[1673256218323,0.7231184,1315.0,1314.9,15.21028]
[1673256219786,0.7231184,1315.0,1314.9,7.60514]
[1673256220394,0.7231184,1315.0,1314.9,19.00794064]
[1673256220638,0.7231184,1315.0,1314.9,26.61308064]
[1673256221277,0.7231184,1315.0,1314.9,19.00794064]
[1673256223685,0.7231184,1315.0,1314.9,26.61308064]
[1673256227023,0.7231184,1315.0,1314.9,26.60968205]
[1673256230540,0.7231184,1315.0,1314.9,28.35568205]
[1673256230745,0.7231184,1315.0,1314.9,31.35568205]
[1673256235482,0.7231184,1315.0,1314.9,33.09768205]
[1673256235858,8.4e-06,1315.0,1314.9,34.09122039]
[1673256236221,21.6283,1315.3,1315.1,30.41592]
[1673256236386,21.6283,1315.3,1315.2,1.735]
[1673256236591,21.6283,1315.3,1315.2,24.5452]
[1673256237016,11.1804,1315.4,1315.2,28.34286064]
[1673256239860,11.1804,1315.4,1315.3,3.79766064]
[1673256240070,20.16315064,1315.4,1315.2,7.6034]
[1673256240313,20.16315064,1315.4,1315.1,16.94596]
[1673256240488,20.16315064,1315.4,1315.1,13.13964064]
[1673256241120,20.16315064,1315.4,1315.1,11.40164064]
[1673256243029,24.15220156,1315.4,1315.1,3.79766064]
[1673256243296,6.60096974,1315.3,1315.0,0.0019916]
[1673256243462,10.7113209,1315.3,1315.0,6.79965224]
[1673256244415,10.7113209,1315.3,1315.0,29.61322224]
[1673256244608,4.11035116,1315.3,1315.0,29.61322224]
[1673256244790,10.7113209,1315.3,1315.0,29.61322224]
[1673256245145,10.7113209,1315.3,1315.0,3.0019916]
[1673256245393,13.09650693,1315.3,1315.0,0.0019916]
[1673256245690,20.69937693,1315.3,1315.0,0.0019916]
[1673256245984,43.02787693,1315.3,1315.0,0.0019916]
[1673256246572,43.02791693,1315.3,1315.0,0.0019916]
[1673256246815,0.05,1315.1,1315.0,0.0019916]
[1673256247036,29.36893719,1315.3,1315.0,0.0019916]
[1673256247204,10.0751,1315.2,1315.0,7.6062816]
[1673256247416,21.28057043,1315.2,1315.0,0.0019916]
[1673256247638,14.67960069,1315.2,1315.0,0.0019916]
[1673256247847,21.28057043,1315.2,1315.0,0.0019916]
[1673256248255,14.67960069,1315.2,1315.0,0.0019916]
[1673256248708,21.28057043,1315.2,1315.0,0.0019916]
[1673256248906,14.67960069,1315.2,1315.0,0.0019916]
[1673256250686,16.42560069,1315.2,1315.0,0.0019916]
[1673256251965,16.42560069,1315.2,1315.0,7.6064816]
[1673256252510,16.42560069,1315.2,1315.0,0.0019916]
[1673256252875,16.42560069,1315.2,1315.0,7.6064316]
[1673256253733,16.42560069,1315.2,1315.0,0.0019916]
[1673256255574,16.42560069,1315.2,1315.0,7.6064616]
[1673256256485,16.42560069,1315.2,1315.0,15.2110216]
[1673256256804,16.42560069,1315.2,1315.0,7.6064616]
[1673256257036,16.47560069,1315.2,1315.0,7.6064616]
[1673256257217,16.42560069,1315.2,1315.0,7.6064616]
[1673256257435,16.42560069,1315.2,1315.0,15.2110216]